bitfinex-derivatives/quotes_SOLF0:USTF0_20250331
["timestamp","ask_amount","ask_price","bid_price","bid_amount"]
[1743385876344,50.812878,126.17,126.09,31.28]
[1743385876545,0.05046419,126.13,126.11,0.05708413]
[1743385877348,0.05046419,126.13,126.12,39.1895]
[1743385877847,6.1977,126.19,126.13,7.9285]
[1743385878050,6.1977,126.19,126.12,31.26]
[1743385878437,50.792878,126.23,126.16,7.9266]
[1743385878644,50.792878,126.23,126.16,39.1866]
[1743385878850,0.05041731,126.21,126.18,0.05940037]
[1743385881139,31.26,126.2,126.1,19.532878]
[1743385881344,6.1466,126.19,126.12,31.26]
[1743385882246,31.26,126.2,126.12,50.792878]
[1743385882441,0.05251964,126.17,126.14,0.05658466]
[1743385882647,50.792878,126.23,126.15,31.26]
[1743385882850,0.05418301,126.17,126.15,31.26]
[1743385883249,0.06052139,126.17,126.15,31.31005146]
[1743385884052,0.06052139,126.17,126.15,0.05005146]
[1743385884546,31.32052139,126.17,126.09,3.2882]
[1743385884756,50.792878,126.17,126.09,31.26]
[1743385885051,31.26,126.17,126.09,31.26]
[1743385885445,31.26,126.17,126.1,19.532878]
[1743385885652,3.2868,126.18,126.11,7.9299]
[1743385885856,0.06003851,126.15,126.12,31.30601366]
[1743385886352,7.98823851,126.15,126.12,31.30601366]
[1743385886847,0.06003851,126.15,126.12,31.30601366]
[1743385887452,0.06003851,126.15,126.13,62.0]
[1743385888453,0.06003851,126.15,126.13,69.9288]
[1743385889154,0.06003851,126.15,126.14,7.9283]
[1743385889451,37.3571,126.22,126.13,62.0]
[1743385889854,7.9247,126.2,126.15,7.9273]
[1743385890054,37.3571,126.22,126.15,39.1673]
[1743385890255,7.9246,126.2,126.15,39.1673]
[1743385890455,7.97695543,126.2,126.17,0.05779584]
[1743385891249,7.9252,126.19,126.17,0.05779584]
[1743385891454,0.05235543,126.2,126.17,0.05779584]
[1743385892357,7.9256,126.19,126.17,0.05779584]
[1743385892556,0.05235543,126.2,126.17,0.05779584]
[1743385893650,0.05235543,126.2,126.18,31.24]
[1743385893855,19.532878,126.25,126.2,7.9242]
[1743385893856,7.9217,126.25,126.2,7.9242]
[1743385894558,7.9217,126.25,126.2,7.9245]
[1743385894952,0.05579383,126.24,126.21,0.05578417]
[1743385895650,7.9232,126.23,126.21,0.05578417]
[1743385895848,0.05579383,126.24,126.21,0.05578417]
[1743385896049,19.532878,126.23,126.15,31.24]
[1743385896254,22.758278,126.23,126.15,31.24]
[1743385896552,19.532878,126.21,126.13,62.0]
[1743385896757,7.9255,126.19,126.14,7.9282]
[1743385897260,0.05057292,126.18,126.15,0.05854322]
[1743385897765,7.927,126.17,126.15,0.05854322]
[1743385898255,0.05057292,126.18,126.15,0.05854322]
[1743385898459,7.927,126.16,126.15,0.05854322]
[1743385899463,0.05057292,126.18,126.15,0.05854322]
[1743385899652,0.05057292,126.18,126.16,7.9265]
[1743385900057,0.05057292,126.18,126.15,31.27854322]
[1743385900257,0.05057292,126.18,126.17,7.9264]
[1743385900457,31.22,126.26,126.15,31.27854322]
[1743385900764,22.597178,126.27,126.16,22.664978]
[1743385901364,7.9236,126.22,126.16,22.664978]
[1743385901663,0.05302562,126.2,126.18,0.05388994]
[1743385901959,0.05302562,126.2,126.19,31.22]
[1743385903759,0.05302562,126.2,126.19,39.1451]
[1743385906758,0.05302562,126.2,126.19,31.22]
[1743385907158,0.05302562,126.2,126.18,0.05388994]
[1743385908065,7.9251,126.19,126.18,0.05388994]
[1743385908769,7.97772562,126.2,126.18,0.05388994]
[1743385914263,7.9251,126.19,126.18,0.05388994]
[1743385914463,0.05302562,126.2,126.18,0.05388994]
[1743385915268,24.41383318,126.19,126.08,655.66691659]
[1743385915573,12.20691659,126.15,126.08,324.6118]
[1743385915864,31.22,126.18,126.08,316.68]
[1743385915865,19.55600279,126.16,126.08,316.68]
[1743385916169,7.9299,126.12,126.08,316.68]
[1743385916365,7.9299,126.12,126.11,0.05909222]
[1743385916564,0.05524658,126.13,126.11,0.05909222]
[1743385916769,0.05524658,126.13,126.11,31.27909222]
[1743385918268,0.05524658,126.13,126.11,93.27909222]
[1743385918765,0.05524658,126.13,126.11,0.05909222]
[1743385918967,3.27454658,126.13,126.03,19.55600279]
[1743385919173,3.2193,126.13,126.05,31.22]
[1743385919362,50.77600279,126.12,126.05,31.22]
[1743385920272,19.60907446,126.1,126.07,0.04021418]
[1743385921475,7.9314,126.09,126.07,0.04021418]
[1743385921865,7.9321,126.08,126.07,0.04021418]
[1743385922574,19.60907446,126.1,126.07,0.04021418]
[1743385923172,7.9321,126.08,126.07,0.04021418]
[1743385923373,19.55600279,126.08,126.01,31.22]
[1743385923573,31.22,126.09,126.01,31.22]
[1743385923772,31.22,126.09,126.04,7.9344]
[1743385924270,31.22,126.09,126.05,7.9335]
[1743385924473,0.0591714,126.08,126.05,7.9335]
[1743385924672,0.0591714,126.08,126.04,31.22]
[1743385925277,0.0591714,126.08,126.04,39.1541]
[1743385925477,0.0591714,126.08,126.04,31.22]
[1743385925679,0.0591714,126.08,126.05,7.9339]
[1743385925881,0.0591714,126.08,126.04,31.22]
[1743385926279,0.0591714,126.08,126.05,62.0]
[1743385927983,0.0591714,126.08,126.06,7.9333]
[1743385928482,0.0591714,126.08,126.04,39.1543]
[1743385929389,0.0591714,126.08,126.04,31.22]
[1743385930089,7.9331,126.07,126.02,7.9356]
[1743385930489,0.05721921,126.06,126.01,31.22]
[1743385930690,7.99071921,126.06,126.01,39.1563]
[1743385931293,7.99071921,126.06,126.02,62.0]
[1743385931490,0.05721921,126.06,126.02,69.9357]
[1743385931786,0.05721921,126.06,126.02,62.0]
[1743385932185,0.05721921,126.06,126.02,69.9356]
[1743385932583,50.77600279,126.05,125.97,3.3114]
[1743385932787,7.9365,126.01,125.97,7.9386]
[1743385933090,0.06054524,126.02,125.96,316.56]
[1743385933794,0.06054524,126.02,125.97,19.55600279]
[1743385933996,0.06054524,126.02,126.0,7.9367]
[1743385934397,0.06054524,126.02,125.99,31.22]
[1743385934598,0.06054524,126.02,126.01,7.9365]
[1743385935797,39.1531,126.07,126.03,7.9352]
[1743385936995,0.05205256,126.06,126.04,0.05676498]
[1743385939503,7.9339,126.05,126.04,0.05676498]
[1743385939799,19.57628721,126.05,125.96,285.34]
[1743385940003,7.9368,126.01,125.97,31.22]
[1743385940903,0.05376047,126.0,125.97,31.22]
[1743385942097,0.05376047,126.0,125.98,7.9384]
[1743385942304,0.05376047,126.0,125.97,31.22]
[1743385942804,0.05376047,126.0,125.99,7.9377]
[1743385945701,0.05376047,126.0,125.94,3.2197]
[1743385945907,0.05376047,126.0,125.91,6.26]
[1743385946107,7.9379,125.99,125.94,7.9405]
[1743385946307,31.22,126.01,125.93,31.22]
[1743385946500,0.05483264,125.97,125.93,31.22]
[1743385946701,0.05483264,125.97,125.94,7.9403]
[1743385946900,0.05483264,125.97,125.91,6.26]
[1743385947406,0.05483264,125.97,125.87,19.57628721]
[1743385947608,50.79628721,125.98,125.87,19.57628721]
[1743385947807,0.05266902,125.93,125.89,7.9438]
[1743385948705,0.05266902,125.93,125.9,62.0]
[1743385948908,0.05266902,125.93,125.85,6.3615]
[1743385949111,19.57628721,125.94,125.86,31.22]
[1743385949312,7.99649644,125.9,125.86,31.22]
[1743385949516,7.99649644,125.9,125.85,7.9462]
[1743385950210,0.05289644,125.9,125.86,31.24]
[1743385951707,0.05289644,125.9,125.84,643.58]
[1743385952014,0.05289644,125.9,125.85,62.0]
[1743385952311,7.99629644,125.9,125.85,69.9461]
[1743385953410,19.62918365,125.9,125.85,62.0]
[1743385953614,0.05289644,125.9,125.85,62.0]
[1743385953815,7.99629644,125.9,125.85,69.946]
[1743385954313,7.9441,125.89,125.85,62.0]
[1743385954720,0.05289644,125.9,125.85,62.0]
[1743385955416,7.99669644,125.9,125.85,69.9461]
[1743385955617,7.99669644,125.9,125.85,62.0]
[1743385956017,0.05289644,125.9,125.85,69.9465]
[1743385956710,0.05289644,125.9,125.85,62.0]
[1743385957109,0.05289644,125.9,125.86,6.3847]
[1743385957316,0.05289644,125.9,125.88,7.9443]
[1743385957717,0.05289644,125.9,125.87,31.24]
[1743385958015,0.05289644,125.9,125.89,7.944]
[1743385959025,0.05289644,125.9,125.88,7.9444]
[1743385959820,0.05289644,125.9,125.89,7.944]
[1743385960322,0.05289644,125.9,125.89,69.944]
[1743385961223,0.05289644,125.9,125.89,62.0]
[1743385961922,0.05289644,125.9,125.89,69.944]
[1743385962125,649.20204925,126.03,125.89,62.0]
[1743385962324,34.4966,125.99,125.9,31.26]
[1743385963024,19.57628721,125.96,125.9,31.26]
[1743385963223,19.63316527,125.96,125.93,0.05638782]
[1743385963616,7.9402,125.95,125.93,0.05638782]
[1743385963819,20.20074008,125.95,125.93,0.05638782]
[1743385964122,12.26054008,125.95,125.93,0.05638782]
[1743385964323,7.9409,125.94,125.93,0.05638782]
[1743385964518,12.26054008,125.95,125.93,0.05638782]
[1743385965516,15.45154008,125.95,125.93,0.05638782]
[1743385966325,15.45154008,125.95,125.89,62.0]
[1743385966623,15.45154008,125.95,125.87,7.9451]
[1743385966624,12.26054008,125.93,125.87,7.9451]
[1743385966825,43.52054008,125.93,125.87,7.9451]
[1743385967220,7.9423,125.92,125.88,7.9445]
[1743385967520,0.0575987,125.91,125.86,37.6447]
[1743385967725,0.0575987,125.91,125.86,49.90524008]
[1743385968321,0.0575987,125.91,125.86,37.6447]
[1743385968829,0.0575987,125.91,125.89,7.9436]
[1743385969528,0.0575987,125.91,125.9,62.0]
[1743385970326,0.0575987,125.91,125.86,49.90524008]
[1743385970327,12.31813878,125.91,125.86,37.6447]
[1743385970521,0.0575987,125.91,125.86,37.6447]
[1743385971118,0.0575987,125.91,125.87,7.9451]
[1743385971323,0.0575987,125.91,125.86,37.6447]
[1743385971724,0.0575987,125.91,125.87,7.9453]
[1743385971928,0.0575987,125.91,125.86,37.6447]
[1743385972430,8.0003987,125.91,125.86,45.59]
[1743385972625,0.0575987,125.91,125.86,37.6447]
[1743385973229,0.0575987,125.91,125.87,69.9451]
[1743385973926,8.0006987,125.91,125.87,69.9451]
[1743385974120,0.0575987,125.91,125.87,62.0]
[1743385974730,8.0006987,125.91,125.87,69.9451]
[1743385974929,0.0575987,125.91,125.87,62.0]
[1743385975332,7.9438,125.9,125.87,62.0]
[1743385975722,0.0575987,125.91,125.87,62.0]
[1743385975926,8.0004987,125.91,125.87,62.0]
[1743385976124,0.0575987,125.91,125.87,62.0]
[1743385976730,0.0575987,125.91,125.88,7.9441]
[1743385977632,0.0575987,125.91,125.89,7.9439]
[1743385978132,0.0575987,125.91,125.9,7.9434]
[1743385978332,12.26054008,125.95,125.89,31.62]
[1743385978531,12.26054008,125.97,125.89,34.9239]
[1743385978730,7.9407,125.95,125.91,7.9427]
[1743385979133,7.9412,125.94,125.89,34.9239]
[1743385979335,12.26054008,125.97,125.89,34.9239]
[1743385979538,0.05701289,125.93,125.9,0.054074]
[1743385979731,0.05701289,125.93,125.9,7.997474]
[1743385980331,0.05701289,125.93,125.9,0.054074]
[1743385980934,0.05701289,125.93,125.9,12.31461408]
[1743385981640,15.49714008,125.99,125.9,12.31461408]
[1743385981831,15.49714008,125.99,125.9,12.26054008]
[1743385982238,7.9384,125.98,125.94,7.9405]
[1743385982434,15.49714008,125.99,125.94,7.9405]
[1743385982636,12.26054008,125.99,125.95,7.9399]
[1743385982835,0.05714206,125.98,125.95,7.99035242]
[1743385983032,0.05714206,125.98,125.95,0.05045242]
[1743385983336,7.9396,125.96,125.95,0.05045242]
[1743385983736,7.9394,125.97,125.95,0.05045242]
[1743385984540,31.57714206,125.98,125.95,0.05045242]
[1743385984741,0.05714206,125.98,125.95,0.05045242]
[1743385984941,7.99564206,125.98,125.95,0.05045242]
[1743385985333,0.05714206,125.98,125.95,0.05045242]
[1743385986136,0.05714206,125.98,125.96,31.5]
[1743385986440,0.05714206,125.98,125.96,39.439]
[1743385986637,0.05714206,125.98,125.96,31.5]
[1743385988236,0.05714206,125.98,125.95,0.05045242]
[1743385988640,7.99594206,125.98,125.95,0.05045242]
[1743385989036,0.05714206,125.98,125.96,7.9392]
[1743385989240,0.05714206,125.98,125.95,0.05045242]
[1743385989946,12.26054008,125.97,125.95,0.05045242]
[1743385990149,12.26054008,125.94,125.87,32.08]
[1743385990441,20.20174008,125.94,125.89,11.2473]
[1743385990642,12.26054008,125.94,125.89,3.3039]
[1743385990944,12.26054008,125.94,125.9,7.9433]
[1743385991145,0.0558591,125.93,125.91,0.05276737]
[1743385992544,32.12,126.0,125.91,12.31330745]
[1743385992839,20.19854008,125.99,125.93,7.9413]
[1743385993044,12.26054008,125.99,125.94,94.14]
[1743385993745,7.99059633,125.98,125.95,0.05230084]
[1743385994642,0.05169633,125.98,125.95,0.05230084]
[1743385995748,7.9395,125.97,125.95,0.05230084]
[1743385996254,0.05169633,125.98,125.95,0.05230084]
[1743385996748,7.9394,125.97,125.95,0.05230084]
[1743385997046,0.05169633,125.98,125.95,0.05230084]
[1743385997345,7.9393,125.97,125.95,0.05230084]
[1743385998451,7.9396,125.96,125.95,0.05230084]
[1743385999143,7.9416,125.93,125.89,358.0]
[1743385999344,7.9416,125.93,125.89,32.3]
[1743385999845,7.9416,125.93,125.89,32.34]
[1743386000042,19.60127357,125.95,125.86,6.5714]
[1743386000242,19.60127357,125.95,125.87,32.32]
[1743386000443,0.0560291,125.92,125.89,0.0604642]
[1743386000648,0.0560291,125.92,125.81,130.2620167]
[1743386000649,19.60127357,125.91,125.83,14.5189]
[1743386000850,19.60127357,125.91,125.84,32.5]
[1743386001044,7.9451,125.88,125.83,14.5189]
[1743386001251,7.9451,125.88,125.84,32.48]
[1743386001453,7.9451,125.88,125.84,32.52]
[1743386001756,0.0541622,125.87,125.85,62.0]
[1743386002746,19.60127357,125.95,125.85,62.0]
[1743386003654,7.9406,125.95,125.89,7.944]
[1743386003948,0.05993151,125.91,125.88,32.85085158]
[1743386004153,0.05993151,125.91,125.88,32.8]
[1743386004354,0.05993151,125.91,125.88,40.80460179]
[1743386004754,0.05993151,125.91,125.88,32.86030179]
[1743386005061,3.3065,125.98,125.88,52.46157536]
[1743386005248,3.3065,125.98,125.89,3.2492]
[1743386005657,7.9398,125.96,125.91,7.9423]
[1743386005853,3.3065,125.98,125.92,32.76]
[1743386006054,7.9419,125.93,125.89,32.78]
[1743386006250,0.05653057,125.96,125.89,32.78]
[1743386006450,0.05816069,125.94,125.9,0.05931997]
[1743386006853,7.99936069,125.94,125.91,62.0]
[1743386007056,0.05816069,125.94,125.9,0.05931997]
[1743386007256,7.9428,125.91,125.9,0.05931997]
[1743386007455,25.96527357,125.93,125.85,32.72]
[1743386008358,7.9439,125.9,125.85,40.6662]
[1743386008558,8.00182289,125.9,125.88,0.05964726]
[1743386008759,0.05792289,125.9,125.88,0.05964726]
[1743386009951,0.05792289,125.9,125.88,62.05964726]
[1743386010364,0.05792289,125.9,125.88,70.00364726]
[1743386011260,0.05792289,125.9,125.89,7.944]
[1743386012464,0.05792289,125.9,125.88,94.77964726]
[1743386015967,0.05792289,125.9,125.89,7.944]
[1743386017467,6.2896,125.97,125.92,7.942]
[1743386018066,12.25506352,125.96,125.9,32.64]
[1743386018467,12.25506352,125.96,125.9,40.583]
[1743386018668,0.05544563,125.94,125.92,0.05006983]
[1743386020371,7.99644563,125.94,125.92,0.05006983]
[1743386021670,12.31050915,125.94,125.88,62.0]
[1743386021868,12.25506352,125.92,125.86,7.9458]
[1743386022372,7.9437,125.9,125.86,7.9458]
[1743386022970,0.05544657,125.89,125.87,0.05681141]
[1743386024575,0.05544657,125.89,125.88,7.9447]
[1743386024775,0.05544657,125.89,125.88,69.9447]
[1743386025074,12.25506352,125.94,125.88,94.42]
[1743386025474,20.19626352,125.94,125.9,7.9431]
[1743386026176,0.05288897,125.93,125.91,0.05383806]
[1743386027276,0.05288897,125.93,125.91,32.47383806]
[1743386027478,0.05288897,125.93,125.91,40.41633806]
[1743386027874,0.05288897,125.93,125.91,32.47383806]
[1743386028074,0.05288897,125.93,125.92,7.9421]
[1743386030978,0.05288897,125.93,125.91,40.41633806]
[1743386031179,0.05288897,125.93,125.91,0.05383806]
[1743386031375,7.99468897,125.93,125.91,0.05383806]
[1743386031575,0.05288897,125.93,125.91,7.99603806]
[1743386031777,0.05288897,125.93,125.91,0.05383806]
[1743386032172,0.05288897,125.93,125.91,32.35383806]
[1743386032378,0.05288897,125.93,125.92,7.9421]
[1743386033881,0.05288897,125.93,125.91,40.29633806]
[1743386034584,0.05288897,125.93,125.92,7.9421]
[1743386035778,12.25506352,126.0,125.91,44.60890158]
[1743386035981,18.69546352,126.02,125.93,12.25506352]
[1743386036184,18.69546352,126.02,125.94,32.34]
[1743386036373,7.9374,126.0,125.96,7.9392]
[1743386036777,18.69546352,126.02,125.94,32.34]
[1743386036984,0.05897235,125.99,125.97,7.99595]
[1743386037178,0.05897235,125.99,125.97,0.05745]
[1743386037581,0.05897235,125.99,125.97,7.99635]
[1743386037781,0.05897235,125.99,125.97,0.05745]
[1743386041588,7.99697235,125.99,125.97,0.05745]
[1743386041788,0.05897235,125.99,125.97,0.05745]
[1743386042788,0.05897235,125.99,125.98,7.9384]
[1743386043387,0.05897235,125.99,125.97,32.21745]
[1743386043585,0.05897235,125.99,125.97,40.15595]
[1743386043891,0.05897235,125.99,125.97,32.21745]
[1743386044091,0.05897235,125.99,125.97,40.15615]
[1743386044292,0.05897235,125.99,125.97,0.05745]
[1743386044491,12.25506352,125.98,125.97,0.05745]
[1743386044892,0.05897235,125.99,125.97,0.05745]
[1743386045289,7.9384,125.98,125.97,0.05745]
[1743386045489,0.05897235,125.99,125.97,0.05745]
[1743386045990,7.99707235,125.99,125.97,0.05745]
[1743386046188,0.05897235,125.99,125.97,0.05745]
[1743386046588,20.19346352,125.98,125.97,0.05745]
[1743386046992,7.9401,125.96,125.91,32.1]
[1743386047394,12.25506352,125.98,125.91,32.1]
[1743386047595,7.9403,125.95,125.91,40.0425]
[1743386047789,16.31346352,126.0,125.91,32.1]
[1743386047990,14.20736352,126.0,125.94,0.05888952]
[1743386048193,0.06068519,125.97,125.96,7.9393]
[1743386049392,0.06068519,125.97,125.96,69.9393]
[1743386049696,0.06068519,125.97,125.96,62.0]
[1743386050395,12.25506352,126.02,125.96,62.0]
[1743386050696,20.19016352,126.04,125.96,74.25506352]
[1743386050897,12.25506352,126.04,125.98,7.9381]
[1743386051098,12.25506352,126.04,125.98,39.9181]
[1743386051292,7.9357,126.03,125.98,31.98]
[1743386051702,0.05801847,126.02,125.99,0.05995694]
[1743386052700,12.25506352,126.01,125.99,0.05995694]
[1743386053000,7.9371,126.0,125.99,0.05995694]
[1743386054592,7.939,125.97,125.95,31.96]
[1743386054999,12.25506352,125.99,125.92,31.9]
[1743386055297,12.25506352,125.97,125.89,358.0]
[1743386055492,12.25506352,125.97,125.9,31.9]
[1743386055801,7.99903695,125.95,125.92,0.06076324]
[1743386056201,7.9411,125.94,125.92,0.06076324]
[1743386056497,12.31350047,125.95,125.92,0.06076324]
[1743386057100,0.05843695,125.95,125.92,0.06076324]
[1743386057305,0.05843695,125.95,125.92,31.90076324]
[1743386057505,0.05843695,125.95,125.93,62.0]
[1743386059006,0.05843695,125.95,125.94,7.9409]
[1743386059608,44.03506352,126.01,125.96,7.9393]
[1743386059807,12.25506352,126.01,125.95,31.8]
[1743386060008,7.938,125.99,125.95,31.8]
[1743386060408,7.938,125.99,125.95,39.7399]
[1743386060602,7.9385,125.98,125.95,31.8]
[1743386060813,7.99048218,125.98,125.96,0.05904881]
[1743386061717,0.05198218,125.98,125.96,0.05904881]
[1743386062809,0.05198218,125.98,125.97,62.0]
[1743386063615,0.05198218,125.98,125.97,69.939]
[1743386063814,0.05198218,125.98,125.97,62.0]
[1743386064212,0.05198218,125.98,125.96,0.05904881]
[1743386065914,0.05198218,125.98,125.96,7.99864881]
[1743386066616,0.05198218,125.98,125.96,0.05904881]
[1743386067618,7.939,125.97,125.96,0.05904881]
[1743386067815,0.05198218,125.98,125.96,0.05904881]
[1743386068210,7.99078218,125.98,125.96,0.05904881]
[1743386068416,0.05198218,125.98,125.96,0.05904881]
[1743386068617,12.25506352,125.97,125.91,31.6]
[1743386069514,7.9406,125.95,125.91,39.5427]
[1743386069713,8.00058864,125.95,125.93,0.05474968]
[1743386069917,0.05998864,125.95,125.93,0.05474968]
[1743386070822,0.05998864,125.95,125.93,62.05474968]
[1743386071417,0.05998864,125.95,125.93,69.99594968]
[1743386072022,12.31505216,125.95,125.93,0.05474968]
[1743386072624,20.25565216,125.95,125.93,0.05474968]
[1743386072927,0.05998864,125.95,125.93,0.05474968]
[1743386073426,0.05998864,125.95,125.93,7.99614968]
[1743386073624,0.05998864,125.95,125.93,0.05474968]
[1743386073927,0.05998864,125.95,125.94,7.9409]
[1743386074724,12.25506352,126.01,125.96,7.9391]
[1743386074928,12.25506352,126.01,125.97,62.0]
[1743386075428,7.9377,125.99,125.97,62.0]
[1743386075726,12.25506352,126.01,125.97,62.0]
[1743386075929,0.05129875,125.99,125.97,62.05735564]
[1743386078528,0.05129875,125.99,125.98,31.42]
[1743386079127,0.05129875,125.99,125.98,39.3584]
[1743386084033,0.05129875,125.99,125.98,51.61346352]
[1743386090233,0.05129875,125.99,125.98,39.3584]
[1743386095132,0.05129875,125.99,125.97,62.05735564]
[1743386095338,0.05129875,125.99,125.97,0.05735564]
[1743386096246,0.05129875,125.99,125.97,7.99575564]
[1743386096540,0.05129875,125.99,125.97,0.05735564]
[1743386098135,0.05129875,125.99,125.97,7.99585564]
[1743386098331,0.05129875,125.99,125.97,69.99585564]
[1743386099642,0.05129875,125.99,125.97,62.05735564]
[1743386100237,0.05129875,125.99,125.97,0.05735564]
[1743386101442,0.05129875,125.99,125.97,7.99635564]
[1743386101838,7.98899875,125.99,125.97,0.05735564]
[1743386102232,0.05129875,125.99,125.97,0.05735564]
[1743386102436,0.05129875,125.99,125.98,7.9384]
[1743386102636,0.05129875,125.99,125.97,31.33735564]
[1743386103243,0.05129875,125.99,125.98,62.0]
[1743386103739,7.98949875,125.99,125.98,62.0]
[1743386104845,7.98949875,125.99,125.97,31.33735564]
[1743386105145,0.05129875,125.99,125.97,31.33735564]
[1743386106050,7.98899875,125.99,125.97,31.33735564]
[1743386107841,7.98899875,125.99,125.97,93.33735564]
[1743386108447,0.05129875,125.99,125.97,93.33735564]
[1743386109647,7.88844851,125.99,125.97,93.33735564]
[1743386110147,15.82654851,125.99,125.97,93.33735564]
[1743386110846,7.83714976,125.98,125.97,0.05735564]
[1743386111347,15.77554976,125.98,125.97,0.05735564]
[1743386112452,7.939,125.97,125.94,31.28]
[1743386112751,7.83714976,125.98,125.94,31.28]
[1743386113151,15.77514976,125.99,125.95,7.9401]
[1743386113454,0.05751231,125.98,125.96,0.06007443]
[1743386113951,0.05751231,125.98,125.96,62.06007443]
[1743386114247,0.05751231,125.98,125.97,7.939]
[1743386115055,0.05751231,125.98,125.96,69.99957443]
[1743386115243,0.05751231,125.98,125.96,62.06007443]
[1743386118953,7.83714976,125.97,125.96,62.06007443]
[1743386119161,39.11714976,125.97,125.9,643.58]
[1743386119355,7.83714976,125.93,125.88,31.28]
[1743386119552,7.83714976,125.94,125.9,7.9428]
[1743386120255,0.05101405,125.93,125.91,0.05739321]
[1743386120459,7.88816381,125.93,125.91,0.05739321]
[1743386120659,15.83006381,125.93,125.91,0.05739321]
[1743386120851,7.83714976,125.92,125.91,0.05739321]
[1743386121963,7.88816381,125.93,125.91,0.05739321]
[1743386122150,0.05101405,125.93,125.91,62.05739321]
[1743386122354,0.05101405,125.93,125.91,69.99979321]
[1743386124262,7.88816381,125.93,125.91,62.05739321]
[1743386125064,7.88816381,125.93,125.91,69.99999321]
[1743386125653,7.88816381,125.93,125.92,7.9421]
[1743386126965,7.88816381,125.93,125.91,69.99989321]
[1743386129561,7.88816381,125.93,125.92,7.9421]
[1743386131165,7.88816381,125.93,125.91,69.99989321]
[1743386134580,7.88816381,125.93,125.92,7.9421]
[1743386134781,0.05101405,125.93,125.92,7.9421]
[1743386134983,0.05101405,125.93,125.92,47.05924976]
[1743386135572,7.83714976,125.99,125.97,7.939]
[1743386135771,7.9374,126.0,125.95,39.11714976]
[1743386135772,7.83714976,126.0,125.95,39.11714976]
[1743386136175,15.77434976,126.0,125.97,7.9386]
[1743386136479,7.83714976,126.0,125.95,39.11714976]
[1743386136675,7.89301513,126.0,125.97,0.05971018]
[1743386136876,7.83714976,125.99,125.97,0.05971018]
[1743386137176,7.83714976,125.98,125.97,0.05971018]
[1743386137375,15.77554976,125.98,125.97,0.05971018]
[1743386138677,7.9391,125.97,125.95,31.28]
[1743386138879,7.83714976,125.96,125.95,31.28]
[1743386139882,7.83714976,125.96,125.94,0.05503329]
[1743386140083,7.83714976,125.95,125.94,0.05503329]
[1743386140781,15.77734976,125.95,125.94,0.05503329]
[1743386142783,11.97392876,125.95,125.94,0.05503329]
[1743386143185,4.136779,125.95,125.94,0.05503329]
[1743386143381,4.136779,125.95,125.94,7.99593329]
[1743386144179,4.136779,125.95,125.94,0.05503329]
[1743386144386,7.83714976,125.96,125.94,0.05503329]
[1743386144684,7.83714976,125.95,125.94,0.05503329]
[1743386145680,11.97447697,125.95,125.94,0.05503329]
[1743386145882,11.97447697,125.95,125.94,7.99593329]
[1743386146083,7.83714976,125.95,125.94,0.05503329]
[1743386148088,15.77734976,125.95,125.94,0.05503329]
[1743386148287,19.91542874,125.95,125.94,0.05503329]
[1743386149179,7.9409,125.94,125.91,62.0]
[1743386149379,7.83714976,125.93,125.9,31.26]
[1743386149978,7.83714976,125.93,125.9,39.2028]
[1743386150190,7.83714976,125.93,125.9,31.26]
[1743386150382,7.89334815,125.93,125.9,31.26]
[1743386151089,7.89334815,125.93,125.91,7.9427]
[1743386151286,0.05619839,125.93,125.88,7.83714976]
[1743386151491,0.05619839,125.93,125.89,31.26]
[1743386151687,0.05619839,125.93,125.9,7.83714976]
[1743386152088,0.05619839,125.93,125.92,7.9421]
[1743386152294,0.05619839,125.93,125.92,101.2021]
[1743386155287,0.05619839,125.93,125.92,109.03924976]
[1743386157188,0.05619839,125.93,125.92,101.2021]
[1743386157889,7.99769839,125.93,125.92,31.26]
[1743386158090,7.89334815,125.93,125.86,7.83714976]
[1743386158286,7.83714976,125.9,125.87,31.26]
[1743386158894,7.83714976,125.89,125.86,26.15574874]
[1743386159093,7.83714976,125.89,125.87,31.26]
[1743386159595,7.83714976,125.9,125.87,31.26]
[1743386159791,0.05265581,125.91,125.87,31.26]
[1743386160995,0.05265581,125.91,125.88,62.0]
[1743386162998,0.05265581,125.91,125.89,7.9436]
[1743386164702,0.05265581,125.91,125.87,31.26]